bitfinex-derivatives/quotes_SOLF0:USTF0_20220108
["timestamp","ask_amount","ask_price","bid_price","bid_amount"]
[1641645692198,34.57579,144.18,144.1,79.34155946]
[1641645693197,6.911,144.18,144.1,79.34155946]
[1641645693397,1.734,144.19,144.1,79.34155946]
[1641645693600,10.93529371,144.22,144.12,14.64455946]
[1641645693799,10.93529371,144.22,144.13,1.734]
[1641645694400,10.93529371,144.22,144.13,16.37855946]
[1641645694699,6.93529371,144.22,144.13,14.64455946]
[1641645694900,4.0,144.21,144.13,14.64455946]
[1641645695099,34.60008371,144.22,144.13,14.64455946]
[1641645695300,34.60008371,144.22,144.12,14.64455946]
[1641645696202,1.734,144.24,144.12,14.64455946]
[1641645696402,27.66479,144.25,144.13,1.733]
[1641645696600,27.66479,144.25,144.13,16.37755946]
[1641645696804,6.93457231,144.24,144.13,16.37755946]
[1641645697001,13.10557231,144.24,144.13,16.37755946]
[1641645697201,13.10557231,144.24,144.14,27.66479]
[1641645697401,13.10557231,144.24,144.14,42.30934946]
[1641645698202,4.0,144.23,144.14,42.30934946]
[1641645698402,13.10557231,144.24,144.18,14.64455946]
[1641645698603,14.83857231,144.24,144.18,14.64455946]
[1641645699103,14.83857231,144.24,144.14,42.30934946]
[1641645699304,13.10557231,144.24,144.14,42.30934946]
[1641645699506,13.10557231,144.24,144.15,1.733]
[1641645700004,13.10557231,144.24,144.15,16.37755946]
[1641645700705,4.0,144.2,144.15,14.64455946]
[1641645700906,9.616,144.2,144.15,14.64455946]
[1641645701308,5.616,144.2,144.15,14.64455946]
[1641645701807,5.616,144.2,144.13,14.64455946]
[1641645702007,8.66857231,144.24,144.13,14.64455946]
[1641645702207,6.93457231,144.24,144.13,14.64455946]
[1641645702607,6.93457231,144.24,144.15,14.64455946]
[1641645702808,27.66479,144.25,144.16,1.733]
[1641645703008,10.93288963,144.27,144.16,7.074]
[1641645703009,6.93288963,144.27,144.16,7.074]
[1641645703211,4.0,144.26,144.18,27.66479]
[1641645703811,6.93288963,144.27,144.18,27.66479]
[1641645704010,4.0,144.26,144.17,14.64455946]
[1641645704411,4.0,144.24,144.17,14.64455946]
[1641645704612,4.0,144.23,144.17,14.64455946]
[1641645704812,9.766,144.23,144.2,14.64455946]
[1641645705012,5.766,144.23,144.2,14.64455946]
[1641645705213,27.66479,144.22,144.2,14.64455946]
[1641645706615,27.66479,144.22,144.21,14.64455946]
[1641645707413,27.66479,144.22,144.19,38.23999891]
[1641645707615,34.27779,144.22,144.19,38.23999891]
[1641645708416,34.27779,144.22,144.21,14.73066842]
[1641645709017,41.21332421,144.22,144.21,14.73066842]
[1641645709415,41.21332421,144.22,144.18,38.23999891]
[1641645709617,41.21332421,144.22,144.19,38.23999891]
[1641645709817,34.60032421,144.22,144.19,38.23999891]
[1641645710418,6.93553421,144.22,144.19,38.23999891]
[1641645711018,27.66479,144.24,144.19,38.23999891]
[1641645711417,27.66479,144.24,144.2,38.23999891]
[1641645712518,27.66479,144.24,144.16,4.27608814]
[1641645712719,27.66479,144.24,144.19,57.51352987]
[1641645713520,31.66479,144.24,144.19,57.51352987]
[1641645713719,27.66479,144.24,144.19,57.51352987]
[1641645714223,27.66479,144.24,144.21,57.51352987]
[1641645714823,31.66479,144.24,144.21,57.51352987]
[1641645716123,4.0,144.24,144.21,57.51352987]
[1641645716524,4.0,144.24,144.22,57.51352987]
[1641645716725,6.93385106,144.25,144.22,57.51352987]
[1641645717425,6.93240901,144.28,144.22,67.70752987]
[1641645717826,6.93240901,144.28,144.22,63.70752987]
[1641645718027,6.93240901,144.28,144.25,57.51352987]
[1641645721529,34.59575756,144.31,144.26,57.51352987]
[1641645721730,27.66479,144.31,144.26,57.51352987]
[1641645722329,27.66479,144.31,144.28,57.51352987]
[1641645723130,27.66479,144.31,144.27,57.51352987]
[1641645724031,27.66479,144.31,144.28,57.51352987]
[1641645724731,27.66479,144.31,144.26,60.05661801]
[1641645725733,27.66479,144.31,144.29,4.0]
[1641645725932,17.66479,144.31,144.29,6.175]
[1641645726133,10.16,144.38,144.29,6.175]
[1641645726333,10.16,144.38,144.3,39.18453124]
[1641645726533,6.92736656,144.39,144.3,39.18453124]
[1641645726734,6.92736656,144.39,144.3,40.91553124]
[1641645727034,17.18736656,144.39,144.3,40.91553124]
[1641645727233,27.66479,144.37,144.36,14.67021372]
[1641645728532,27.66479,144.37,144.33,39.18453124]
[1641645728735,27.66479,144.37,144.34,39.18453124]
[1641645729634,27.66479,144.37,144.36,14.65594158]
[1641645733137,27.66479,144.37,144.35,14.65594158]
[1641645733339,35.38579,144.37,144.35,14.65594158]
[1641645733538,6.92904656,144.36,144.35,14.65594158]
[1641645733738,6.92904656,144.36,144.35,8.75182986]
[1641645733940,6.92904656,144.36,144.33,2.54308814]
[1641645734140,6.92904656,144.36,144.29,54.15381181]
[1641645735142,4.0,144.35,144.29,54.15381181]
[1641645735341,27.66479,144.34,144.29,54.15381181]
[1641645735544,27.66479,144.34,144.3,39.18453124]
[1641645736043,6.93000693,144.33,144.3,39.18453124]
[1641645736542,6.93000693,144.33,144.28,39.18453124]
[1641645737547,6.93000693,144.33,144.29,39.18453124]
[1641645738349,27.66479,144.34,144.28,39.18453124]
[1641645738747,27.66479,144.34,144.29,1.732]
[1641645739349,27.66479,144.34,144.32,39.18453124]
[1641645740150,27.66479,144.37,144.33,39.18453124]
[1641645740650,27.66479,144.37,144.33,46.51053124]
[1641645741251,27.66479,144.37,144.34,39.18453124]
[1641645742153,6.92688671,144.4,144.34,39.18453124]
[1641645743157,6.92688671,144.4,144.35,39.18453124]
[1641645744257,6.92688671,144.4,144.34,39.18453124]
[1641645745056,6.92688671,144.4,144.33,54.15381181]
[1641645745855,6.92688671,144.4,144.34,39.18453124]
[1641645746057,8.65788671,144.4,144.34,39.18453124]
[1641645747256,6.92688671,144.4,144.34,39.18453124]
[1641645748759,6.92688671,144.4,144.36,39.18453124]
[1641645751764,10.92688671,144.4,144.36,39.18453124]
[1641645751964,10.92688671,144.4,144.35,39.18453124]
[1641645752463,4.0,144.4,144.35,39.18453124]
[1641645752664,10.92880651,144.36,144.33,14.96928057]
[1641645752868,4.0,144.35,144.34,39.20494159]
[1641645753065,4.0,144.35,144.34,30.62494159]
[1641645753366,18.60480651,144.36,144.34,30.62494159]
[1641645753662,14.60480651,144.36,144.29,57.51352987]
[1641645753864,44.00159651,144.36,144.28,62.8632]
[1641645754063,34.59359651,144.36,144.28,62.8632]
[1641645754666,40.34059651,144.36,144.28,62.8632]
[1641645755267,33.41179,144.36,144.29,13.39782217]
[1641645755567,4.0,144.3,144.26,57.51352987]
[1641645755766,27.66479,144.27,144.26,57.51352987]
[1641645755966,35.63479,144.27,144.26,48.03352987]
[1641645756166,35.63479,144.27,144.26,33.69352987]
[1641645756366,35.63479,144.27,144.2,27.66479]
[1641645756566,4.0,144.26,144.2,27.66479]
[1641645756768,6.93505323,144.23,144.19,33.69352987]
[1641645756968,13.53505323,144.23,144.19,33.69352987]
[1641645757567,13.53505323,144.23,144.16,66.4715]
[1641645757769,6.6,144.23,144.16,84.32169993]
[1641645759068,34.59936231,144.24,144.16,84.32169993]
[1641645759368,1.733,144.26,144.16,84.32169993]
[1641645759568,31.66479,144.27,144.17,1.733]
[1641645759768,6.93361068,144.26,144.16,86.05469993]
[1641645759968,8.66661068,144.26,144.16,84.32169993]
[1641645760972,12.66661068,144.26,144.16,84.32169993]
[1641645761173,4.0,144.25,144.16,84.32169993]
[1641645761374,6.93505323,144.23,144.16,84.32169993]
[1641645761574,14.11505323,144.23,144.16,66.4715]
[1641645763779,7.18,144.23,144.16,66.4715]
[1641645764178,7.18,144.23,144.17,14.62899986]
[1641645765481,6.93096756,144.31,144.22,4.0]
[1641645765680,1.733,144.32,144.22,11.636]
[1641645765878,4.90251017,144.33,144.25,27.66479]
[1641645766177,1.732,144.34,144.25,35.42379]
[1641645766380,5.732,144.34,144.25,35.42379]
[1641645767377,1.732,144.34,144.25,35.42379]
[1641645767577,4.0,144.28,144.25,35.42379]
[1641645767779,4.0,144.28,144.24,14.62899986]
[1641645768079,4.0,144.28,144.23,14.62899986]
[1641645768577,1.732,144.29,144.23,14.62899986]
[1641645768982,1.732,144.29,144.19,27.66479]
[1641645769179,33.20885063,144.3,144.19,27.66479]
[1641645769680,33.20885063,144.3,144.2,14.62899986]
[1641645770581,27.66479,144.3,144.2,14.62899986]
[1641645773087,27.66479,144.3,144.21,14.62899986]
[1641645774787,27.66479,144.3,144.21,18.62899986]
[1641645777191,27.66479,144.3,144.22,14.62899986]
[1641645779193,27.66479,144.3,144.23,14.62899986]
[1641645779392,27.66479,144.3,144.23,18.62899986]
[1641645779591,27.66479,144.3,144.23,14.62899986]
[1641645780997,27.66479,144.3,144.26,14.62899986]
[1641645781696,27.66479,144.3,144.27,14.62899986]
[1641645792917,27.66479,144.3,144.28,14.62899986]
[1641645797321,31.66479,144.3,144.26,1.68176966]
[1641645797521,5.732,144.29,144.26,1.68176966]
[1641645797924,5.732,144.29,144.22,39.01234066]
[1641645798121,4.0,144.28,144.22,39.01234066]
[1641645798323,4.0,144.25,144.22,39.01234066]
[1641645798521,10.891,144.25,144.22,39.01234066]
[1641645798722,27.66479,144.23,144.22,39.01234066]
[1641645799024,27.66479,144.23,144.19,39.01234066]
[1641645800322,27.66479,144.23,144.18,64.942]
[1641645801121,36.19679,144.23,144.17,39.01234066]
[1641645801321,36.19679,144.23,144.16,39.01234066]
[1641645802122,36.19679,144.23,144.16,51.5712201]
[1641645805526,36.19679,144.23,144.15,107.38174066]
[1641645806529,36.19679,144.23,144.16,51.94269019]
[1641645807127,36.19679,144.23,144.16,55.94269019]
[1641645807330,1.733,144.24,144.16,43.01234066]
[1641645807532,38.14479,144.25,144.16,5.733]
[1641645807829,27.66479,144.25,144.16,5.733]
[1641645808329,27.66479,144.25,144.17,39.01234066]
[1641645809033,27.66479,144.25,144.18,27.66479]
[1641645809234,27.66479,144.25,144.18,34.52979]
[1641645809433,20.08475281,144.29,144.18,34.52979]
[1641645809634,16.08475281,144.29,144.18,34.52979]
[1641645809833,14.54,144.29,144.18,34.52979]
[1641645810137,14.54,144.29,144.18,73.54213066]
[1641645811040,4.0,144.25,144.18,73.54213066]
[1641645812335,4.0,144.27,144.18,73.54213066]
[1641645812535,5.733,144.28,144.18,73.54213066]
[1641645812736,5.733,144.28,144.18,34.52979]
[1641645813435,1.733,144.28,144.19,1.73118625]
[1641645813635,5.733,144.28,144.19,1.73118625]
[1641645813835,4.0,144.27,144.19,1.73118625]
[1641645815538,31.66479,144.27,144.19,1.73118625]
[1641645815937,27.66479,144.27,144.19,1.73118625]
[1641645816740,27.66479,144.27,144.19,40.74352691]
[1641645816942,1.733,144.28,144.19,40.74352691]
[1641645817140,16.273,144.29,144.19,40.74352691]
[1641645817342,12.273,144.29,144.19,40.74352691]
[1641645817541,16.273,144.29,144.19,1.73118625]
[1641645817741,12.273,144.29,144.19,1.73118625]
[1641645817942,16.273,144.29,144.19,1.73118625]
[1641645818542,4.0,144.27,144.19,1.73118625]
[1641645818945,4.0,144.28,144.19,1.73118625]
[1641645820545,4.0,144.28,144.19,40.74352691]
[1641645820843,4.0,144.27,144.19,40.74352691]
[1641645821345,4.0,144.28,144.19,40.74352691]
[1641645821644,27.66479,144.27,144.19,1.73118625]
[1641645822746,31.66479,144.27,144.19,1.73118625]
[1641645823149,31.66479,144.27,144.19,40.74352691]
[1641645823348,39.36179,144.27,144.19,40.74352691]
[1641645823749,35.36179,144.27,144.19,40.74352691]
[1641645823948,35.36179,144.27,144.19,1.73118625]
[1641645825157,39.36179,144.27,144.19,1.73118625]
[1641645825355,35.36179,144.27,144.19,1.73118625]
[1641645825558,4.0,144.25,144.19,1.73118625]
[1641645825856,63.02658,144.27,144.19,1.73118625]
[1641645826056,5.54603405,144.25,144.19,1.73118625]
[1641645826255,4.0,144.22,144.19,1.73118625]
[1641645826457,6.682,144.22,144.19,1.73118625]
[1641645827359,6.93625581,144.24,144.19,1.73118625]
[1641645827563,11.27883111,144.26,144.16,5.73118625]
[1641645827564,14.21412482,144.26,144.16,5.73118625]
[1641645827759,6.93529371,144.26,144.16,10.57418625]
[1641645828360,6.93529371,144.26,144.21,14.72456411]
[1641645828766,64.87474105,144.27,144.21,14.72456411]
[1641645829561,1.733,144.26,144.21,14.72456411]
[1641645830662,64.87474105,144.27,144.21,14.72456411]
[1641645831362,59.32958,144.27,144.21,14.72456411]
[1641645832663,59.32958,144.27,144.22,14.72456411]
[1641645833062,55.32958,144.27,144.22,14.72456411]
[1641645833464,12.273,144.29,144.22,18.72456411]
[1641645833664,10.54,144.29,144.23,4.0]
[1641645833861,4.90251017,144.3,144.22,50.30935411]
[1641645834466,27.66479,144.32,144.26,14.72456411]
[1641645834662,27.66479,144.32,144.26,20.42856411]
[1641645835364,27.66479,144.32,144.27,16.45575036]
[1641645837968,10.36,144.33,144.27,16.45575036]
[1641645838169,10.36,144.33,144.27,14.72456411]
[1641645839172,10.36,144.33,144.27,25.96356411]
[1641645839373,32.56730017,144.36,144.27,21.96356411]
[1641645839573,43.04730017,144.36,144.27,23.69556411]
[1641645839775,38.14479,144.36,144.27,23.69556411]
[1641645839972,27.66479,144.36,144.27,23.69556411]
[1641645840173,27.66479,144.36,144.27,51.36035411]
[1641645840775,27.66479,144.36,144.3,14.72456411]
[1641645840974,27.66479,144.36,144.3,20.91756411]
[1641645841276,16.09107428,144.42,144.32,4.0]
[1641645841474,16.09107428,144.42,144.33,66.6684]
[1641645841676,12.091,144.44,144.33,72.3984]
[1641645842075,27.66479,144.42,144.35,27.66479]
[1641645842879,27.66479,144.42,144.36,1.73118625]
[1641645843280,27.66479,144.42,144.36,7.99418625]
[1641645844075,27.66479,144.42,144.37,1.73118625]
[1641645844276,27.66479,144.47,144.37,3.46218625]
[1641645844878,19.67018259,144.46,144.37,3.46218625]
[1641645845078,19.67018259,144.46,144.38,1.73118625]
[1641645846380,19.67018259,144.46,144.37,8.65351769]
[1641645847178,19.67018259,144.46,144.38,1.73118625]
[1641645847383,19.67018259,144.46,144.39,1.731]
[1641645847579,19.67018259,144.46,144.39,6.778]
[1641645847980,19.67018259,144.46,144.39,10.778]
[1641645848180,19.67018259,144.46,144.4,29.39597625]
[1641645848380,19.67018259,144.46,144.41,1.73]
[1641645848581,19.67018259,144.49,144.41,1.73]
[1641645848984,19.67018259,144.49,144.41,3.46118625]
[1641645849382,19.67018259,144.49,144.41,7.46118625]
[1641645849885,19.67018259,144.49,144.41,5.73]
[1641645850383,19.67018259,144.49,144.41,1.73]
[1641645850983,19.67018259,144.49,144.4,33.39479]
[1641645851186,19.67018259,144.49,144.43,4.0]
[1641645851383,19.67018259,144.49,144.43,8.643]
[1641645852086,19.67018259,144.49,144.44,27.66479]
[1641645852287,19.67018259,144.49,144.44,29.39479]
[1641645852487,19.67018259,144.51,144.44,29.39479]
[1641645852685,19.67018259,144.51,144.44,1.73]
[1641645852884,19.67018259,144.51,144.41,1.73]
[1641645853085,26.25518259,144.51,144.41,1.73]
[1641645853486,26.25518259,144.51,144.45,4.0]
[1641645853685,6.585,144.51,144.45,4.0]
[1641645853885,6.585,144.51,144.45,5.73]
[1641645854087,27.66479,144.52,144.45,5.73]
[1641645854286,1.73,144.66,144.51,30.91467294]
[1641645854486,1.73,144.66,144.64,4.0]
[1641645854685,39.01234066,144.69,144.64,8.49]
[1641645855085,39.01234066,144.69,144.65,4.0]
[1641645855385,39.01234066,144.69,144.65,1.728]
[1641645855587,1.728,144.77,144.65,1.728]
[1641645855785,1.728,144.77,144.64,8.49]
[1641645856185,4.0,144.74,144.67,27.66479]
[1641645856385,1.727,144.73,144.65,27.66479]
[1641645856589,5.727,144.76,144.65,27.66479]
[1641645856789,6.91204424,144.75,144.65,31.06749392]
[1641645856988,1.727,144.74,144.65,31.06749392]
[1641645857188,7.25440224,144.74,144.65,31.06749392]
[1641645857390,7.25440224,144.74,144.65,27.66479]
[1641645857989,7.25440224,144.74,144.61,66.6525]
[1641645858190,27.66479,144.69,144.61,94.31729]
[1641645859389,15.88117927,144.69,144.62,3.3918167]
[1641645859789,15.88117927,144.69,144.61,94.31729]
[1641645860195,15.88117927,144.69,144.61,98.31729]
[1641645860590,1.728,144.71,144.61,94.31729]
[1641645860792,7.25498687,144.75,144.61,94.31729]
[1641645861194,7.25498687,144.75,144.61,101.22837884]
[1641645861395,19.6392436,144.74,144.61,101.22837884]
[1641645861593,1.728,144.73,144.62,3.38731102]
[1641645862193,27.66479,144.72,144.62,3.38731102]
[1641645862392,1.728,144.71,144.62,3.38731102]
[1641645862994,1.728,144.71,144.65,4.0]
[1641645863195,27.66479,144.72,144.62,3.38731102]
[1641645863495,5.52798223,144.72,144.62,3.38731102]
[1641645863698,29.39179,144.74,144.62,15.27931102]
[1641645863895,29.39179,144.74,144.62,11.27931102]
[1641645864298,34.91917339,144.74,144.62,11.27931102]
[1641645865297,5.52826321,144.72,144.62,11.27931102]
[1641645865496,1.728,144.71,144.61,27.66479]
[1641645866297,29.39279,144.71,144.61,27.66479]
[1641645867302,29.39279,144.71,144.62,3.39065188]
[1641645867502,29.39279,144.71,144.62,10.18665188]
[1641645867703,27.66479,144.74,144.66,4.0]
[1641645867905,27.66479,144.74,144.66,7.65]
[1641645868104,8.63932767,144.76,144.66,7.65]
[1641645868303,8.63932767,144.76,144.67,27.66479]
[1641645868304,6.91132767,144.76,144.67,27.66479]
[1641645868503,44.65643118,144.77,144.67,31.66479]
[1641645868703,44.65643118,144.77,144.67,27.66479]
[1641645869704,1.727,144.76,144.67,27.66479]
[1641645872209,1.727,144.76,144.62,21.23483522]
[1641645872210,5.52758942,144.73,144.62,14.43883522]
[1641645872410,29.39279,144.72,144.64,27.66479]
[1641645873614,27.66479,144.72,144.64,27.66479]
[1641645874015,27.66479,144.72,144.65,3.40348704]
[1641645874215,6.91395582,144.71,144.65,3.40348704]
[1641645874418,33.19474125,144.67,144.65,3.40348704]
[1641645874619,40.63374125,144.67,144.65,3.40348704]
[1641645874819,38.63374125,144.67,144.65,3.40348704]
[1641645875019,38.63374125,144.67,144.62,3.40348704]
[1641645875921,33.10379,144.67,144.6,17.84232226]
[1641645876121,8.36246314,144.7,144.6,17.84232226]
[1641645876322,8.36246314,144.7,144.61,27.66479]
[1641645876922,5.52948273,144.68,144.62,3.40348704]
[1641645877621,14.31048273,144.68,144.61,14.43883522]
[1641645878024,6.91682518,144.65,144.58,39.01234066]
[1641645878223,5.53205708,144.62,144.58,1.90184066]
[1641645878425,27.66479,144.59,144.58,1.90184066]
[1641645878625,8.78,144.59,144.53,58.48660019]
[1641645878824,8.78,144.59,144.52,90.15139019]
[1641645879426,8.78,144.59,144.52,86.15139019]
[1641645879728,1.729,144.65,144.58,4.0]
[1641645879926,6.91610761,144.66,144.59,4.0]
[1641645880326,27.66479,144.7,144.61,27.66479]
[1641645880527,34.57922388,144.7,144.61,27.66479]
[1641645880726,5.52963028,144.68,144.58,6.18]
[1641645880927,1.728,144.67,144.58,6.18]
[1641645881329,1.728,144.67,144.57,58.48660019]
[1641645881728,1.728,144.67,144.57,62.48660019]
[1641645881929,1.728,144.67,144.58,4.0]
[1641645882130,5.52963028,144.68,144.58,9.822]
[1641645882331,5.52963028,144.68,144.6,27.66479]
[1641645882530,34.57922388,144.7,144.6,27.66479]
[1641645883328,34.57922388,144.7,144.6,86.15139019]
[1641645884131,27.66479,144.7,144.6,86.15139019]
[1641645884331,34.58089761,144.66,144.6,58.48660019]
[1641645884532,41.71389761,144.66,144.6,58.48660019]
[1641645884731,41.71389761,144.66,144.59,17.2760392]
[1641645885732,41.71389761,144.66,144.56,79.76263939]
[1641645886133,41.71389761,144.66,144.56,75.76263939]
[1641645886333,27.66479,144.59,144.56,75.76263939]
[1641645886532,34.31279,144.59,144.56,75.76263939]
[1641645887634,27.66479,144.59,144.52,4.0]
[1641645887835,27.66479,144.61,144.52,4.0]
[1641645888034,6.91754289,144.63,144.52,12.367]
[1641645888235,6.91754289,144.63,144.52,8.367]
[1641645888436,27.66479,144.62,144.55,4.0]
[1641645888634,27.66479,144.62,144.55,5.983]
[1641645889537,27.66479,144.62,144.52,79.76263939]
[1641645889738,27.66479,144.62,144.54,4.0]
[1641645890340,34.58305075,144.62,144.53,58.48660019]
[1641645890539,27.66479,144.62,144.53,4.0]
[1641645891140,27.66479,144.62,144.52,58.48660019]
[1641645891340,27.66479,144.62,144.53,4.0]
[1641645891539,27.66479,144.62,144.52,62.48660019]
[1641645891740,36.05579,144.62,144.52,62.48660019]
[1641645892340,5.5323712,144.61,144.52,4.0]
[1641645892545,1.729,144.6,144.52,4.0]
[1641645893140,8.64797876,144.6,144.52,4.0]
[1641645893640,6.91897876,144.6,144.53,4.0]
[1641645897443,6.91897876,144.6,144.52,4.0]
[1641645897642,5.53289413,144.59,144.52,4.0]
[1641645897846,13.45189413,144.59,144.52,4.0]
[1641645898342,13.45210882,144.59,144.52,4.0]
[1641645898644,13.45210882,144.59,144.54,39.03606789]
[1641645898944,15.18110882,144.59,144.54,39.03606789]
[1641645899345,15.18110882,144.59,144.55,39.03606789]
[1641645899545,13.45210882,144.59,144.55,39.03606789]
[1641645899746,7.919,144.59,144.55,39.03606789]
[1641645899947,6.91897876,144.6,144.55,39.03606789]
[1641645901847,6.91897876,144.6,144.56,39.03606789]
[1641645902147,1.729,144.61,144.56,39.03606789]
[1641645902552,34.30317551,144.62,144.56,39.03606789]
[1641645904152,27.66479,144.62,144.56,39.03606789]
[1641645905255,27.66479,144.62,144.58,39.03606789]
[1641645905655,27.66479,144.62,144.58,46.77106789]
[1641645906054,6.91778216,144.63,144.58,50.77106789]
[1641645906254,6.91610761,144.66,144.58,46.77106789]
[1641645906455,6.91610761,144.66,144.59,39.03606789]
[1641645906658,6.91610761,144.66,144.59,66.70085789]
[1641645907364,6.91610761,144.66,144.61,39.03606789]
[1641645907562,6.91610761,144.66,144.61,44.50406789]
[1641645908465,44.8599411,144.68,144.61,44.50406789]
[1641645908762,6.9151511,144.68,144.65,14.67225304]
[1641645908961,6.9151511,144.68,144.65,23.16125304]
[1641645909562,6.9151511,144.68,144.65,47.52506789]
[1641645909964,5.52845789,144.71,144.65,47.52506789]
[1641645910165,6.91347783,144.72,144.67,4.0]
[1641645910564,6.91347783,144.72,144.65,47.52506789]
[1641645910766,6.91347783,144.72,144.65,8.489]
[1641645910965,38.14479,144.74,144.65,8.489]
[1641645910966,46.78407313,144.74,144.65,8.489]
[1641645911167,45.05707313,144.74,144.65,8.489]
[1641645911369,1.727,144.73,144.65,8.489]
[1641645911569,1.727,144.73,144.65,12.489]
[1641645911869,1.727,144.73,144.7,14.63991264]
[1641645912569,1.727,144.73,144.7,20.36191264]
[1641645912969,36.30407313,144.74,144.7,14.46982696]
[1641645913170,34.57707313,144.74,144.7,14.46982696]
[1641645913770,19.64028959,144.73,144.7,5.722]
[1641645915274,34.57707313,144.74,144.7,5.722]
[1641645916177,34.57707313,144.74,144.67,4.0]
[1641645916377,34.57707313,144.74,144.67,39.03606789]
[1641645916778,34.57707313,144.74,144.7,4.0]
[1641645916978,34.57707313,144.74,144.7,6.508]
[1641645917177,19.63920218,144.73,144.72,4.0]
[1641645917578,11.78447967,144.73,144.72,4.0]
[1641645918178,34.57707313,144.74,144.72,4.0]
[1641645919581,34.57707313,144.74,144.7,6.55]
[1641645919781,34.57707313,144.74,144.72,4.0]
[1641645922485,34.57707313,144.74,144.72,9.941]
[1641645923485,1.727,144.73,144.72,5.941]
[1641645923686,5.52797834,144.72,144.65,4.0]
[1641645923889,6.91491201,144.69,144.65,4.0]
[1641645924086,12.35291201,144.69,144.65,4.0]
[1641645924687,12.35291201,144.69,144.66,3.17202913]
[1641645925086,6.91491201,144.69,144.66,3.17202913]
[1641645927691,6.91491201,144.69,144.67,4.86510794]
[1641645929393,6.91491201,144.69,144.67,11.21210794]
[1641645930494,12.44402386,144.69,144.67,11.21210794]
[1641645930693,14.17102386,144.69,144.67,4.86510794]
[1641645932294,12.44402386,144.69,144.67,4.86510794]
[1641645932698,5.52979475,144.68,144.67,4.86510794]
[1641645932897,7.25779475,144.68,144.67,4.86510794]
[1641645933597,7.25779475,144.68,144.67,8.86510794]
[1641645933798,37.96479,144.71,144.67,8.86510794]
[1641645933997,29.39279,144.74,144.67,7.445]
[1641645934200,27.66479,144.74,144.71,4.0]
[1641645934398,27.66479,144.74,144.71,9.696]
[1641645934798,27.66479,144.74,144.71,5.696]
[1641645935399,27.66479,144.74,144.72,4.0]
[1641645935998,27.66479,144.74,144.72,7.17837608]
[1641645936398,6.91204424,144.75,144.72,7.17837608]
[1641645937398,16.59457337,144.78,144.73,3.17837608]
[1641645937598,6.91061124,144.78,144.75,4.0]
[1641645937800,6.91061124,144.78,144.75,5.986]
[1641645938101,6.91061124,144.78,144.77,4.0]
[1641645938503,34.57396884,144.81,144.77,4.0]
[1641645939301,34.57396884,144.81,144.78,3.17837608]
[1641645939502,34.57396884,144.81,144.78,9.64737608]
[1641645940301,34.57396884,144.81,144.79,3.17837608]
[1641645940503,36.29996884,144.81,144.79,3.17837608]
[1641645941303,1.726,144.81,144.79,3.17837608]
[1641645941502,34.57253704,144.84,144.8,4.0]
[1641645941702,6.62766552,144.85,144.79,8.05808226]
[1641645942104,1.726,144.86,144.84,4.0]
[1641645942302,4.88241541,144.87,144.84,11.872]
[1641645942502,4.88241541,144.87,144.84,7.872]
[1641645943003,8.35082568,144.89,144.84,7.872]
[1641645943502,8.35082568,144.89,144.84,11.872]
[1641645943903,6.62582568,144.89,144.84,11.872]
[1641645944103,6.62582568,144.89,144.87,4.0]
[1641645944403,6.62582568,144.89,144.87,11.784]
[1641645945205,1.725,144.91,144.87,7.784]
[1641645945405,34.56872179,144.92,144.87,7.784]
[1641645946204,27.66479,144.92,144.89,4.0]
[1641645946404,27.66479,144.92,144.87,7.784]
[1641645946604,27.66479,144.92,144.9,4.0]
[1641645946804,27.66479,144.92,144.9,8.552]
[1641645947006,27.66479,144.92,144.9,12.552]
[1641645947306,27.66479,144.92,144.9,8.552]
[1641645948306,27.66479,144.92,144.91,4.0]
[1641645948505,27.66479,144.94,144.91,4.0]
[1641645949107,27.66479,144.98,144.93,4.0]
[1641645949406,27.66479,144.98,144.95,4.0]
[1641645949608,1.724,145.02,144.95,4.0]
[1641645949809,1.724,145.02,144.93,7.198]
[1641645950111,22.75461978,145.03,144.93,7.198]
[1641645950112,6.89845475,145.03,144.98,4.0]
[1641645950308,6.89845475,145.03,144.98,7.628]